Cogmind - Beta 17 @@@ ROGUE MODE // 2026.07.31 @ 14:55:29 Player: teag2 Result: Self-destructed Performance ------------- Evolutions (5) 2500 Regions Visited (4) 800 Robots Destroyed (24) 120 Value Destroyed (854) 854 Prototype IDs (25) 500 Alien Tech Used (0) 0 Bonus (800) 800 TOTAL SCORE: 5574 Bonus ------- Registered with UFD 300 Met Optimus in HQ 500 Cogmind --------- Core Integrity 762/1000 Matter 290/300 Energy 160/160 System Corruption 0% Temperature Cool (9) Movement Flying (37) Location -5/Factory Parts ------- > --- POWER (1) -------- Light Nuclear Core > --- PROPULSION (6) --- Xenon Bombardment Thruster Flightbrick > --- UTILITY (8+3) ---- Large Storage Unit Gravity Neutralizer Improved Sensor Array Experimental Signal Interpreter A0-MCA's Component Scanner > --- WEAPON (2) ------- Companion Sword > --- INVENTORY (15) --- Improved Deuterium Engine Light Fission Core Cesium-ion Thruster High-capacity Matter Pod (200) IFF Parser Improved Actuator Array Layered Medium Armor Plating Layered Medium Armor Plating Hypervelocity Gauss Cannon Hypervelocity Gauss Cannon Hypervelocity Gauss Cannon DRS Beacon (Ready) Botcube Peak State ------------ > --- POWER ------------ Improved Deuterium Engine > --- PROPULSION ------- Xenon Bombardment Thruster Makeshift Flight Unit Flightbrick > --- UTILITY ---------- Large Storage Unit Gravity Neutralizer Improved Sensor Array Experimental Signal Interpreter A0-MCA's Component Scanner > --- WEAPON ----------- Battle Rifle Companion Sword > --- INVENTORY -------- Light Nuclear Core Improved Deuterium Engine Cesium-ion Thruster High-capacity Matter Pod IFF Parser Improved Actuator Array Layered Medium Armor Plating Layered Medium Armor Plating Hypervelocity Gauss Cannon Hypervelocity Gauss Cannon Hypervelocity Gauss Cannon DRS Beacon Botcube [Rating: 89] Favorites ----------- Power Ion Engine Engine Ion Engine Power Core Light Nuclear Core Propulsion Light Treads Treads Light Treads Leg Aluminum Leg Flight Unit Flightbrick Utility Large Storage Unit Device Gravity Neutralizer Storage Large Storage Unit Processor Targeting Computer Protection Medium Armor Plating Weapon Battle Rifle Energy Gun Medium Laser Energy Cannon Subdweller Beam Cannon Ballistic Gun Battle Rifle Ballistic Cannon Light Cannon Launcher EMP Blaster Slashing Weapon Companion Sword Build | -11 -10 -10 -7 -5 ------- Run | Yrd Mat Sub Scr Fac Slots Evolved 10 | . . . . 10 Power . | . . . . . Propulsion 4 | . . . . 4 Utility 6 | . . . . 6 Weapon . | . . . . . Parts Attached 35 | . 9 7 12 7 Power 5 | . 1 . 3 1 Engine 4 | . 1 . 2 1 Core 1 | . . . 1 . Reactor . | . . . . . Propulsion 8 | . 3 1 1 3 Treads 5 | . 3 1 1 . Leg . | . . . . . Wheel . | . . . . . Hover . | . . . . . Flight 3 | . . . . 3 Utility 12 | . 3 2 4 3 Device 3 | . . . 1 2 Storage 2 | . 2 . . . Processor 3 | . 1 . 1 1 Hackware . | . . . . . Protection 4 | . . 2 2 . Artifact . | . . . . . Weapon 10 | . 2 4 4 . Energy Gun 1 | . 1 . . . Energy Cannon 2 | . . 1 1 . Ballistic Gun 3 | . 1 . 2 . Ballistic Cannon 1 | . . 1 . . Launcher 2 | . . 2 . . Special Weapon . | . . . . . Impact Weapon . | . . . . . Slashing Weapon 1 | . . . 1 . Piercing Weapon . | . . . . . Special Melee Weapon . | . . . . . Unidentified Prototypes 2 | . . . 2 . Parts Lost 7 | . 2 2 . 3 Power 2 | . 1 . . 1 Propulsion 3 | . 1 1 . 1 Utility . | . . . . . Weapon 2 | . . 1 . 1 Highest Loss Streak 3 | . 1 1 . 3 To Critical Strikes . | . . . . . Average Backups 9 | . 7 11 9 10 Power . | . . 1 . 2 Propulsion 1 | . 3 1 1 1 Utility 4 | . 1 5 5 4 Weapon 2 | . 2 2 1 1 Tool/Special . | . . . . . Unused Backups 33 | . 8 7 9 9 Power 4 | . 1 1 1 1 Propulsion 5 | . 2 2 . 1 Utility 13 | . 1 . 8 4 Weapon 11 | . 4 4 . 3 Tool/Special . | . . . . . Average Slot Usage (%) 92 | . 99 93 93 48 Engine 12 | . 13 14 11 3 Treads 19 | . 15 21 22 . Leg 2 | . 12 . . . Storage 13 | . 14 14 14 5 Processor 4 | . 13 2 2 9 Protection 8 | . . 11 11 . Energy Gun 3 | . 13 2 . . Energy Cannon 5 | . . 11 2 . Ballistic Gun 12 | . 14 2 21 3 Ballistic Cannon 5 | . . 11 2 . Peak Build Rating 89 | . 9 15 34 89 Average Rating 17 | . 7 12 21 82 On Entrance 13 | 6 6 9 14 34 Avg Prop Armor Cover (%) . | . . . . . Naked Turns . | . . . . . Heaviest Build 43 | 12 29 43 43 37 Greatest Support 50 | 20 40 40 48 50 Greatest Overweight (x) 2 | . . 2 2 . Average Overweight (x) . | . . 1 . . Largest Inventory Capacity 15 | . 15 15 15 15 Average Capacity 13 | . 9 15 15 15 Most Carried 15 | . 15 15 15 15 Average Carried 12 | . 7 14 13 12 Final Capacity 15 | 8 15 15 15 15 Final Carried 15 | 6 15 15 15 13 Class Distribution -------------------- 80% | Mutant 19% | Derelict-Mutant Dominant Class ---------------- Mutant | -10/Materials Mutant | -10/Subcaves Mutant | -7/Scraptown Derelict-Mutant | -5/Factory Resources | -11 -10 -10 -7 -5 ----------- Run | Yrd Mat Sub Scr Fac Matter Collected 1026 | 195 222 434 100 75 Remotely . | . . . . . Salvage Created 986 | . 398 389 . 199 Parts 49 | . 21 15 . 13 Haulers Intercepted 1 | . 1 . . . Recyclers Shooed . | . . . . . Parts Field Recycled . | . . . . . Retrieved Matter . | . . . . . Parts Self-Destructed 6 | . . 6 . . Prevented 3 | . . 3 . . Parts Restored . | . . . . . Kills | -11 -10 -10 -7 -5 ------- Run | Yrd Mat Sub Scr Fac Combat Hostiles Destroyed 21 | . 9 9 . 3 Melee 3 | . . . . 3 Guns 10 | . 9 1 . . Cannons 4 | . . 4 . . AOE 1 | . . 1 . . Classes Destroyed 7 | . 4 1 . 2 Hauler 1 | . 1 . . . Watcher 2 | . 1 . . 1 Swarmer 4 | . 3 . . 1 Grunt 8 | . 6 2 . . Sentry 1 | . . . . 1 Hunter 1 | . . . . 1 Subdweller 7 | . . 7 . . Best Kill Streak 3 | . 3 2 . 2 Combat Bots Only 3 | . 3 2 . 1 Max Kills in Single Turn 1 | . 1 1 . 1 Gunslinging . | . . . . . Exploded 1 | . . 1 . . Melee 1 | . . . . 1 Uniques/NPCs Destroyed . | . . . . . Combat | -11 -10 -10 -7 -5 -------- Run | Yrd Mat Sub Scr Fac Hostile Shots Fired 192 | . 59 41 . 92 Missed 76 | . 22 13 . 41 Hits 116 | . 37 28 . 51 Projectile 116 | . 37 28 . 51 AOE 1 | . . . . 1 Critical Strikes 4 | . 2 1 . 1 Damage Taken 2076 | . 493 635 . 948 Core 421 | . 51 132 . 238 Absorbed by Shields . | . . . . . Core Remaining (%) 63 | 100 . . 26 . Volleys Fired 82 | . 49 33 . . Largest 2 | . 2 2 . . Hottest 110 | . 70 110 . . Shots Fired 163 | . 97 66 . . Gun 107 | . 97 10 . . Cannon 50 | . . 50 . . Launcher 6 | . . 6 . . Special . | . . . . . Kinetic 79 | . 49 30 . . Thermal 78 | . 48 30 . . Explosive . | . . . . . Electromagnetic 6 | . . 6 . . Robot Hit Streak 22 | . 13 22 . . Robot Miss Streak 3 | . 3 3 . . Penetration Max . | . . . . . Secondary Targets . | . . . . . Shots Hit Robots 122 | . 70 38 . 14 Core Hits 40 | . 22 12 . 6 Critical Kills 2 | . . 2 . . Critical Parts Destroyed 1 | . 1 . . . Critical Strikes 8 | . 4 4 . . Burn 3 | . 3 . . . Meltdown 2 | . . 2 . . Destroy 1 | . 1 . . . Blast 2 | . . 2 . . Melee Attacks 23 | . . . . 23 Impact . | . . . . . Slashing 23 | . . . . 23 Piercing . | . . . . . Sneak Attacks 1 | . . . . 1 Combat Hostiles . | . . . . . Follow-up Attacks . | . . . . . Damage Inflicted 2266 | . 885 789 . 592 Guns 960 | . 885 75 . . Cannons 553 | . . 553 . . Explosions 161 | . . 161 . . Melee 592 | . . . . 592 Ramming . | . . . . . Kinetic 797 | . 523 274 . . Thermal 716 | . 362 354 . . Explosive . | . . . . . Electromagnetic 161 | . . 161 . . Impact . | . . . . . Slashing 592 | . . . . 592 Piercing . | . . . . . Highest Corruption . | . . . . . Average Corruption . | . . . . . Corruption Purged . | . . . . . Corruption Blocked . | . . . . . Overload Shots . | . . . . . Overflow Damage 55 | . . . . 55 Projectiles . | . . . . . Explosions . | . . . . . Melee 55 | . . . . 55 Knockbacks 4 | . . 4 . . Impact . | . . . . . Kinetic 3 | . . 3 . . Secondary 1 | . . 1 . . Self-Inflicted Damage . | . . . . . Shots . | . . . . . Rammed . | . . . . . Targets Rammed . | . . . . . Kicked . | . . . . . Crushed . | . . . . . Highest Temperature 298 | . 223 298 . 1 Average Temperature 79 | . 66 140 . 1 Received Heat Transfer 796 | . 276 391 . 129 Siege Activations . | . . . . . Martial Activations . | . . . . . Shielding Activations . | . . . . . Robots Disrupted . | . . . . . Combat Hostiles . | . . . . . Robots Corrupted 1 | . . 1 . . Combat Hostiles 1 | . . 1 . . Parts Fried . | . . . . . Impact Corruptions . | . . . . . Robots Melted 2 | . . 2 . . Combat Hostiles 2 | . . 2 . . Parts Melted 8 | . . 8 . . Heat Transferred 1813 | . 1295 518 . . Parts Sabotaged . | . . . . . Parts Stolen . | . . . . . Parts Stripped . | . . . . . Power Chain Reactions . | . . . . . Alert | -11 -10 -10 -7 -5 ------- Run | Yrd Mat Sub Scr Fac Maximum Alert Level . | . . . . . Low Security (%) 100 | . 100 . . 100 Level 1 . | . . . . . Level 2 . | . . . . . Level 3 . | . . . . . Level 4 . | . . . . . Level 5 . | . . . . . High Security . | . . . . . Max Security . | . . . . . Peak Influence 102 | . 102 . . 67 Initial . | . . . . . Average 30 | . 31 . . 27 Influence Increases 551 | . 309 65 . 177 Destroy 0b10 Robot/C 280 | . 180 40 . 60 Destroy 0b10 Robot/NC 15 | . 10 . . 5 Destroy Leader 76 | . 44 10 . 22 Disable Machine 30 | . . . . 30 Partial Spotted 15 | . . . . 15 Lose Combat Pursuer 135 | . 75 15 . 45 Influence Decreases 484 | . 290 84 . 110 Entered New Map 10 | . . 10 . . Time Decay 434 | . 280 74 . 80 Lost Part 40 | . 10 . . 30 Squads Dispatched . | . . . . . Investigation . | . . . . . Extermination . | . . . . . Reinforcement . | . . . . . Assault . | . . . . . Garrison . | . . . . . Intercept . | . . . . . Searches Triggered . | . . . . . Construction Impeded . | . . . . . Haulers Reinforced . | . . . . . Active Scanning Responses . | . . . . . Cargo Convoy Interrupts . | . . . . . Stealth | -11 -10 -10 -7 -5 --------- Run | Yrd Mat Sub Scr Fac Distress Signals 2 | . . . . 2 Communications Jammed . | . . . . . Distress Signals . | . . . . . Times Spotted 45 | . 20 11 . 14 Peak Tracking Total 8 | . 4 2 . 8 Tactical Retreats 5 | . 2 1 . 2 Traps | -11 -10 -10 -7 -5 ------- Run | Yrd Mat Sub Scr Fac Traps Triggered 2 | . 1 1 . . Indirectly . | . . . . . Trap Hack Attempts . | . . . . . Triggered . | . . . . . Disarmed . | . . . . . Reprogrammed . | . . . . . Reused . | . . . . . Traps Extracted . | . . . . . Installed . | . . . . . Triggered . | . . . . . Machines | -11 -10 -10 -7 -5 ---------- Run | Yrd Mat Sub Scr Fac Machines Disabled 4 | . 1 1 . 2 Max in Single Turn 1 | . 1 1 . 1 Machines Repaired . | . . . . . Machines Dismantled . | . . . . . Machines Sabotaged . | . . . . . Overloaded Fab Kills . | . . . . . Hacking | -11 -10 -10 -7 -5 --------- Run | Yrd Mat Sub Scr Fac Machines Accessed 4 | . . 1 2 1 Terminals 1 | . . . . 1 Fabricators . | . . . . . Repair Stations . | . . . . . Recycling Units . | . . . . . Scanalyzers . | . . . . . Garrison Access . | . . . . . Total Hacks 6 | . . 1 3 2 Successful 4 | . . 1 3 . Failed 2 | . . . . 2 Catastrophic . | . . . . . Database Lockouts . | . . . . . Manual 2 | . . . . 2 Terminals 2 | . . . . 2 Fabricators . | . . . . . Repair Stations . | . . . . . Recycling Units . | . . . . . Scanalyzers . | . . . . . Garrison Access . | . . . . . Terminal Hacks 4 | . . 1 3 . Record 2 | . . . 2 . Open Door 1 | . . . 1 . Proto ID Catalog 1 | . . 1 . . Fabricator Hacks . | . . . . . Repair Station Hacks . | . . . . . Recycling Unit Hacks . | . . . . . Scanalyzer . | . . . . . Garrison Access Hacks . | . . . . . Unauthorized Hacks . | . . . . . Terminals . | . . . . . Fabricators . | . . . . . Repair Stations . | . . . . . Recycling Units . | . . . . . Scanalyzers . | . . . . . Garrison Access . | . . . . . Data Cores Recovered . | . . . . . Used . | . . . . . Hacking Detections 1 | . . . . 1 Full Trace Events . | . . . . . Feedback Events . | . . . . . Feedback Blocked . | . . . . . Robot Schematics Acquired . | . . . . . Robots Built . | . . . . . Authchips . | . . . . . Time . | . . . . . Total Robot Build Rating . | . . . . . Part Schematics Acquired . | . . . . . Parts Built . | . . . . . Authchips . | . . . . . Time . | . . . . . Total Part Build Rating . | . . . . . Part Studies Acquired . | . . . . . Parts Repaired . | . . . . . Time . | . . . . . Parts Recycled . | . . . . . Recycled Matter . | . . . . . Retrieved Matter . | . . . . . Retrieved Components . | . . . . . Parts Scanalyzed . | . . . . . Part Schematics Acquired . | . . . . . Parts Damaged . | . . . . . Bothacking | -11 -10 -10 -7 -5 ------------ Run | Yrd Mat Sub Scr Fac Used RIF Installer . | . . . . . Robots Hacked . | . . . . . Non-combat . | . . . . . Combat . | . . . . . Robot Hacks Applied . | . . . . . Relay Couplers Released . | . . . . . Fabnet Peak Effective % . | . . . . . Robots Rewired . | . . . . . Allies Hacked . | . . . . . Hacks Repelled . | . . . . . Allies | -11 -10 -10 -7 -5 -------- Run | Yrd Mat Sub Scr Fac Total Allies . | . . . . . Largest Group . | . . . . . Highest-Rated Group . | . . . . . Highest-Rated Ally . | . . . . . Initial UFD Resources 39 | . . . . 39 Total Orders . | . . . . . Ally Attacks . | . . . . . Total Damage . | . . . . . Kills . | . . . . . Allies Corrupted . | . . . . . Allies Melted . | . . . . . Intel | -11 -10 -10 -7 -5 ------- Run | Yrd Mat Sub Scr Fac Active Infowar (turns) 160 | . . . . 160 Sensors 160 | . . . . 160 Robot Analysis Total . | . . . . . Derelict Logs Recovered 5 | . . 3 2 . Drone Launches . | . . . . . Drone Recoveries . | . . . . . Exploration | -11 -10 -10 -7 -5 ------------- Run | Yrd Mat Sub Scr Fac Turns Passed 5527 | . 1129 2057 2126 215 Spaces Moved 2819 | 1 674 781 1086 277 Core . | . . . . . Treads 2187 | . 320 781 1086 . Legs 355 | 1 354 . . . Wheels . | . . . . . Hover . | . . . . . Flight 277 | . . . . 277 Fastest Speed 37 | 120 120 160 160 37 Average Speed 178 | 120 138 244 191 38 Slowest Speed 320 | 120 160 320 320 39 Overloaded Moves . | . . . . . Propulsion Burnouts . | . . . . . Robots Hopped . | . . . . . Potential Cave-ins . | . . . . . Cave-ins Triggered . | . . . . . Exploration Rate (%) 39 | 2 86 48 54 8 Regions Visited 4 Branch Regions 2 Pre-discovered Areas 2 | . . 1 1 . Known Exits Taken 1 | . . . 1 . Unknown Exits Taken 3 | 1 1 1 . . Scrap Searched 11 | . . 7 4 . Spaces Dug . | . . . . . Terrain Destroyed 1 | . . 1 . . Melee . | . . . . . Projectile 1 | . . 1 . . AOE . | . . . . . Terrain Rammed . | . . . . . Walls Destroyed . | . . . . . Machines Disabled . | . . . . . Actions | -11 -10 -10 -7 -5 --------- Run | Yrd Mat Sub Scr Fac Total 3137 | . 771 871 1143 352 Wait 75 | . 15 26 . 34 Move 2815 | . 673 780 1085 277 Hop . | . . . . . Pick Up 59 | . 18 10 23 8 Fast Attach . | . . . . . Attach 22 | . 5 4 6 7 Detach 6 | . 1 1 4 . Swap 16 | . 4 5 6 1 Drop 39 | . 6 12 19 2 Fire 82 | . 49 33 . . Melee 23 | . . . . 23 Ram . | . . . . . Kick . | . . . . . Crush . | . . . . . Escape Stasis . | . . . . . Rewire . | . . . . . Trap . | . . . . . Miscellaneous . | . . . . . Route ------- -11/Scrapyard -10/Materials (discovered 5 exits: [*Mat x3] / [*Min] / *Sub) -10/Subcaves -7/Scraptown -5/Factory History --------- Turn | Location | Event 1 | -11/Scrapyard | Discovered new exit (range 0) 1 | -11/Scrapyard | Entered Materials 116 | -10/Materials | Discovered new exit (range 6) 137 | -10/Materials | Discovered new exit (range 15) 301 | -10/Materials | Build established: Mutant 413 | -10/Materials | Discovered new exit (range 15) 621 | -10/Materials | Discovered new exit (range 4) 1119 | -10/Materials | Discovered new exit (range 7) 1130 | -10/Materials | Entered Subcaves 1131 | -10/Subcaves | Approached by a straggling Scientist 1313 | -10/Subcaves | Learned Materials emergency access door positions 1409 | -10/Subcaves | Learned location of Recycling (-7) 1723 | -10/Subcaves | Disturbed a concealed Subdweller 1846 | -10/Subcaves | Learned Materials garrison access intel 1965 | -10/Subcaves | Visited 4L-MR0's lab 1982 | -10/Subcaves | Found Prototype Device 1991 | -10/Subcaves | Found Flightbrick 2168 | -10/Subcaves | Core integrity fell below 50% 3187 | -10/Subcaves | Entered Scraptown 3453 | -7/Scraptown | Heard Great Nut preacher, LISTEN AND RECITE! 3527 | -7/Scraptown | Scanned Subdweller tech in exchange for log data 3539 | -7/Scraptown | Learned location of Testing (-3) 3662 | -7/Scraptown | Visited UFD Registry 3662 | -7/Scraptown | Registered with UFD as "Beamdome" 3770 | -7/Scraptown | Visited Botcube Research 3832 | -7/Scraptown | Visited Sword Containment 3856 | -7/Scraptown | Found Prototype Slashing Weapon 3924 | -7/Scraptown | Visited Supply Room 3975 | -7/Scraptown | Visited DA-N13 Charitable Foundation 3984 | -7/Scraptown | Found DCF Scrap (27 items) 4077 | -7/Scraptown | Visited A0-MCA Data Center 4086 | -7/Scraptown | Given an A- rating by A0-MCA 4091 | -7/Scraptown | Found A0-MCA's Component Scanner 4126 | -7/Scraptown | Visited Curators Association 4177 | -7/Scraptown | Visited Scrap Suit Storage 4235 | -7/Scraptown | Visited Derelict Rescue Squad 4295 | -7/Scraptown | Delivered Scrap Shield to a Scientist 4335 | -7/Scraptown | Build established: Derelict-Mutant 4670 | -7/Scraptown | Visited Infowarlord's Domain 4681 | -7/Scraptown | Found Exp. Signal Interpreter 4853 | -7/Scraptown | Found DRS Beacon 4891 | -7/Scraptown | Found Botcube 5001 | -7/Scraptown | Identified Sfc. Transmogrifier 5020 | -7/Scraptown | Identified Companion Sword 5103 | -7/Scraptown | Visited Scrapoid Pod Storage 5225 | -7/Scraptown | Met Optimus 5225 | -7/Scraptown | Accepted into 0bPrime 5277 | -7/Scraptown | Build established: Mutant 5307 | -7/Scraptown | Discovered new exit (range 5) 5311 | -7/Scraptown | Identified exit to Factory 5313 | -7/Scraptown | Entered Factory 5313 | -5/Factory | Evolved 10 slots: Propulsion x4, Utility x6 5316 | -5/Factory | Attached Flightbrick, gained temporary slots: Utility x3 5506 | -5/Factory | Lost 3 parts (1p1n1w) 5528 | -5/Factory | Self-destructed Last Messages --------------- 05486_ U-05 Engineer lays Concrete. 05487_ H-66 Slayer destroyed. 05487_ U-05 Engineer builds a Wall. 05487_ U-05 Engineer lays Concrete. 05488_ R-10 Processor collects Lgt. Fission Core. 05488_ U-05 Engineer lays Concrete. 05489_ Acquired 52 matter. 05490_ U-05 Engineer builds a Wall. 05491_ U-05 Engineer lays Concrete. 05493_ Component scanned: Imp. Matter Compressor. 05493_ U-05 Engineer builds a Wall. 05498_ U-05 Engineer lays Concrete. Companion Sword: "Time to be sneaky." 05514_ Critical hit (Burn: +37). 05514_ Slug penetrates Wall. 05522_ Penetrated by Slug. 05525_ Slug penetrates Door. 05525_ Y-64 Sentinel destroyed. Map ----- +----------------------------------------------------+ | ???????????# # ####### ###???????????? | | ???????????# # # # #??######?????? | | ???????????########### #" # #?? [ ?????? | | ??????????????# #T # #? ??????? | | ??????????????# ^ #" # #? ??????? | | ??????????????# !! """ # # # """ ""??????? | | ??????????????# ^!! """ # # # """ ""??????? | | ??????????????#^ """ + """ # + """ ""??????? | | ?????########## # """ # # #???? | | ?????# = # """ # # #???? | | ?????# ! # # #?#########???? | | ?????# "" # # #?????????????? | | ?????# "" # # #?????????????? | | ?????# "Y #######m #?????????????? | | ?????# "" #""""#######?????# #?????????????? | | ?????# "" """"""""#????????# #?????????????? | | ?????# # !"####?????# #?????????????? | | ?????# !!! k# u[! " = ####### ####+#####????? | | ?????# !!! " %=!% "!%[ +????? | | ?????# !! "%[ " [ ########## ###??????? | | ?????# ! " = "" ##????????# #????????? | | ?????# " "" #?????????# #?????#### | | ??? = """""#/## ########### #????#| | | ?? ######### " # # ; #???# | | ????????????# ## ## # ! #??# #???# | | ????????????#u?##### us%@ #??# #???# | | ????????????#??????# !p=! ![!#??# #???# | | ???????????????????# # ![!#??# #???# | | ???????????????? ^ p# ![ #??? #???# | | ??????????????# ########??? #???# | | ??????????????# <<< #?????????? ####???# | | ??????????????# <<< #?????????? #??????# | | ??????????????# < < #?????????? #??????# | | ??????????????# u#?????????? #??????# | | ??????????????? #?????????? ???######### | | ??????????????? ????k?????????? | | ???????????????? #??????????????? | | ???????????????? Y #??????????????? | | ??????????????? #??????????????? | | ?????????????????#?#####???????????????? | | ????????????????????????????????????????? ####### | | ?????????????????????????????????????????????# | | ?????????????????????????????????????????????# | | ?????????????????????????????????????????????# | | ?????????????????????????????????????????????# | | ?????????????????????????????????????????????# | | ?????????????????????????????????????????????# | | ?????????????????????????????????????????????# | | ?????????????????????????????????????????????# | | ?????????????????????????????????????????????# | +----------------------------------------------------+ Best States ------------- Heat Dissipation 40 Energy Generation 16 Energy Capacity 290 Matter Stores 300 Matter Capacity 300 Sight Range 16 Robot Scan Range 15 Terrain Scan Density 10 Additional Mass Support 12 Armor Coverage 225 Evasion (%) 62 Targeting Accuracy 5 Recoil Reduction 2 Item Schematics ----------------- None Robot Schematics ------------------ None Fabricated ------------ Nothing Repaired ---------- Nothing Studied --------- None Alien Tech Used ----------------- None Achievements -------------- None Challenges ------------ None Game ------ Seed HellfireSmallDoublenader Manual? 1 Play Time 00:26:49 Cumulative 84.5 hours Start 2026.07.28 @ 18:01:58 End 2026.07.31 @ 14:55:29 Sessions 3 Manual Loads 0 Difficulty Rogue Special Mode None Game No. 59 Rogue 58 Adventurer 1 Explorer 0 Win Type - Total 6 Types 3/0/1/1/0/0/0/0/0/1 Lore% 47 Gallery% 56 Achievement% 53 Wizard Run 0 Options --------- Layout 1 ASCII 0 Keyboard 0 Movement Numpad Keybinds 0 Fullscreen 1 Font 32/SmallcapsGlow Map View 50x35 Zoom Use 0% Tactical HUD 1 Map Filters NONE Filters NONE Steam 1 RUN: 38bd2fc1-94ed-420b-9ed2-4d87d16bfee8